Cogmind - Beta 13 @@@ ROGUE MODE // 2024.05.04 @ 23:00:21 Player: Cwaftwer Result: Destroyed by IB-4WF(R) with Subdweller Beam Cannon Performance ------------- Evolutions (0) 0 Regions Visited (3) 600 Robots Destroyed (7) 35 Value Destroyed (257) 257 Prototype IDs (4) 80 Alien Tech Used (0) 0 Bonus (0) 0 TOTAL SCORE: 972 Bonus ------- None Cogmind --------- Core Integrity 0/250 Matter 236/300 Energy 100/100 System Corruption 0% Temperature Cool (9) Movement Rolling (145) Ox3 Location -10/Subcaves Parts ------- > --- POWER (1) -------- (None) > --- PROPULSION (2) --- Compact Wheel > --- UTILITY (2) ------ High-capacity Storage Unit Experimental Sensor Array > --- WEAPON (2) ------- Subdweller Shrapnel Launcher > --- INVENTORY (20) --- Ion Engine Light Treads Subdweller Monowheel Heat Sink Small Storage Unit Targeting Computer Light Armor Plating Light Armor Plating Sensor Drone Bay (20/20) Small Laser Beam Rifle Heavy Assault Rifle Peak State ------------ > --- POWER ------------ Improved Ion Engine > --- PROPULSION ------- Light Treads Light Treads > --- UTILITY ---------- High-capacity Storage Unit Experimental Sensor Array > --- WEAPON ----------- Medium Laser > --- INVENTORY -------- Ion Engine Light Treads Compact Wheel Compact Wheel Heat Sink Small Storage Unit Targeting Computer Light Armor Plating Light Armor Plating Sensor Drone Bay Small Laser Beam Rifle Heavy Assault Rifle Rocket Launcher [Rating: 17] Favorites ----------- Power Improved Ion Engine Engine Improved Ion Engine Propulsion Light Treads Treads Light Treads Wheel Compact Wheel Utility High-capacity Storage Unit Device Experimental Sensor Array Storage High-capacity Storage Unit Weapon Medium Laser Energy Gun Medium Laser Ballistic Gun Light Assault Rifle Launcher Rocket Launcher Build | -11 -10 -10 -10 ------- Run | Yrd Mat Min Sub Slots Evolved . | . . . . Power . | . . . . Propulsion . | . . . . Utility . | . . . . Weapon . | . . . . Parts Attached 17 | 6 . 7 4 Power 2 | 1 . 1 . Engine 2 | 1 . 1 . Core . | . . . . Reactor . | . . . . Propulsion 5 | 2 . 1 2 Treads 3 | 2 . 1 . Leg . | . . . . Wheel 2 | . . . 2 Hover . | . . . . Flight . | . . . . Utility 6 | 1 . 5 . Device 3 | . . 3 . Storage 3 | 1 . 2 . Processor . | . . . . Hackware . | . . . . Protection . | . . . . Artifact . | . . . . Weapon 4 | 2 . . 2 Energy Gun 1 | 1 . . . Energy Cannon . | . . . . Ballistic Gun 1 | 1 . . . Ballistic Cannon . | . . . . Launcher 2 | . . . 2 Special Weapon . | . . . . Impact Weapon . | . . . . Slashing Weapon . | . . . . Piercing Weapon . | . . . . Special Melee Weapon . | . . . . Unidentified Prototypes 2 | . . 2 . Parts Lost 7 | . . 1 6 Power 1 | . . . 1 Propulsion 3 | . . . 3 Utility . | . . . . Weapon 3 | . . 1 2 Highest Loss Streak 3 | . . 1 3 To Critical Strikes . | . . . . Average Slot Usage (%) 81 | . 71 84 82 Engine 9 | . . 11 11 Treads 26 | . 28 28 22 Wheel 1 | . . . 4 Device 8 | . . 8 14 Storage 14 | . 14 14 14 Energy Gun 13 | . 14 14 13 Ballistic Gun 6 | . 14 7 . Naked Turns . | . . . . Heaviest Build 64 | 8 8 64 50 Greatest Support 40 | 40 40 40 40 Greatest Overweight (x) 14 | . . 1 14 Average Overweight (x) . | . . . 1 Largest Inventory Capacity 20 | 8 8 20 20 Average Capacity 16 | 6 8 16 20 Most Carried 15 | 2 1 15 14 Average Carried 9 | . 1 10 13 Final Capacity 20 | 8 8 20 20 Final Carried 14 | 1 1 14 12 Class Distribution -------------------- 100% | Mutant Dominant Class ---------------- Mutant | -10/Materials Mutant | -10/Mines Mutant | -10/Subcaves Resources | -11 -10 -10 -10 ----------- Run | Yrd Mat Min Sub Matter Collected 398 | 248 . 84 66 Remotely . | . . . . Salvage Created 351 | . . 295 56 Parts 15 | . . 11 4 Haulers Intercepted . | . . . . Recyclers Shooed . | . . . . Parts Field Recycled . | . . . . Retrieved Matter . | . . . . Parts Self-Destructed 3 | . . . 3 Prevented . | . . . . Kills | -11 -10 -10 -10 ------- Run | Yrd Mat Min Sub Combat Hostiles Destroyed 6 | . . 4 2 Guns 4 | . . 4 . AOE 2 | . . . 2 Classes Destroyed 4 | . . 3 1 Recycler 1 | . . 1 . Grunt 2 | . . 2 . Sentry 2 | . . 2 . Subdweller 2 | . . . 2 Best Kill Streak 2 | . . 2 1 Combat Bots Only 2 | . . 2 1 Max Kills in Single Turn 1 | . . 1 1 Gunslinging . | . . . . Exploded 1 | . . . 1 Melee . | . . . . Uniques/NPCs Destroyed . | . . . . Combat | -11 -10 -10 -10 -------- Run | Yrd Mat Min Sub Hostile Shots Fired 49 | . . 33 16 Missed 11 | . . 7 4 Damage Taken 1015 | . . 376 639 Core 266 | . . 82 184 Absorbed by Shields . | . . . . Core Remaining (%) 100 | 100 . . . Volleys Fired 27 | . . 20 7 Largest 2 | . . 2 2 Hottest 83 | . . 70 83 Shots Fired 46 | . . 37 9 Gun 39 | . . 37 2 Cannon . | . . . . Launcher 7 | . . . 7 Special . | . . . . Kinetic 19 | . . 17 2 Thermal 22 | . . 20 2 Explosive 5 | . . . 5 Electromagnetic . | . . . . Robot Hit Streak 26 | . . 26 6 Robot Miss Streak 2 | . . 2 2 Penetration Max . | . . . . Secondary Targets . | . . . . Shots Hit Robots 33 | . . 29 4 Core Hits 16 | . . 12 4 Critical Kills . | . . . . Critical Parts Destroyed . | . . . . Critical Strikes 3 | . . 3 . Burn 3 | . . 3 . Melee Attacks . | . . . . Impact . | . . . . Slashing . | . . . . Piercing . | . . . . Sneak Attacks . | . . . . Combat Hostiles . | . . . . Follow-up Attacks . | . . . . Damage Inflicted 821 | . . 315 506 Guns 339 | . . 315 24 Cannons . | . . . . Explosions 482 | . . . 482 Melee . | . . . . Ramming . | . . . . Kinetic 195 | . . 89 106 Thermal 250 | . . 226 24 Explosive 376 | . . . 376 Electromagnetic . | . . . . Impact . | . . . . Slashing . | . . . . Piercing . | . . . . Highest Corruption . | . . . . Average Corruption . | . . . . Corruption Purged . | . . . . Corruption Blocked . | . . . . Overload Shots . | . . . . Overflow Damage . | . . . . Projectiles . | . . . . Explosions . | . . . . Melee . | . . . . Knockbacks . | . . . . Impact . | . . . . Kinetic . | . . . . Secondary . | . . . . Self-Inflicted Damage 52 | . . . 52 Shots 1 | . . . 1 Rammed . | . . . . Targets Rammed . | . . . . Kicked . | . . . . Crushed . | . . . . Highest Temperature 209 | . . 209 . Average Temperature 84 | . . 84 . Received Heat Transfer 192 | . . 156 36 Siege Activations . | . . . . Robots Corrupted . | . . . . Combat Hostiles . | . . . . Parts Fried . | . . . . Impact Corruptions . | . . . . Robots Melted . | . . . . Combat Hostiles . | . . . . Parts Melted 4 | . . 4 . Heat Transferred 962 | . . 888 74 Parts Sabotaged . | . . . . Parts Stolen . | . . . . Parts Stripped . | . . . . Power Chain Reactions . | . . . . Alert | -11 -10 -10 -10 ------- Run | Yrd Mat Min Sub Peak Influence 65 | . 29 65 . Initial 10 | . . 10 . Average 17 | . 22 16 . Maximum Alert Level . | . . . . Low Security (%) 100 | 100 100 100 . Level 1 . | . . . . Level 2 . | . . . . Level 3 . | . . . . Level 4 . | . . . . Level 5 . | . . . . High Security . | . . . . Max Security . | . . . . Squads Dispatched 1 | . 1 . . Investigation . | . . . . Extermination . | . . . . Reinforcement 1 | . 1 . . Assault . | . . . . Garrison . | . . . . Intercept . | . . . . Searches Triggered . | . . . . Construction Impeded . | . . . . Haulers Reinforced . | . . . . Active Scanning Responses . | . . . . Cargo Convoy Interrupts . | . . . . Stealth | -11 -10 -10 -10 --------- Run | Yrd Mat Min Sub Distress Signals . | . . . . Communications Jammed . | . . . . Distress Signals . | . . . . Times Spotted 11 | . 2 4 5 Peak Tracking Total 3 | . 3 2 3 Tactical Retreats . | . . . . Traps | -11 -10 -10 -10 ------- Run | Yrd Mat Min Sub Traps Triggered 1 | . . . 1 Indirectly . | . . . . Trap Hack Attempts . | . . . . Triggered . | . . . . Disarmed . | . . . . Reprogrammed . | . . . . Reused . | . . . . Traps Extracted . | . . . . Installed . | . . . . Triggered . | . . . . Machines | -11 -10 -10 -10 ---------- Run | Yrd Mat Min Sub Machines Disabled . | . . . . Max in Single Turn . | . . . . Machines Repaired . | . . . . Machines Dismantled . | . . . . Machines Sabotaged . | . . . . Overloaded Fab Kills . | . . . . Hacking | -11 -10 -10 -10 --------- Run | Yrd Mat Min Sub Machines Accessed 2 | . 1 1 . Terminals 1 | . 1 . . Fabricators . | . . . . Repair Stations . | . . . . Recycling Units . | . . . . Scanalyzers . | . . . . Garrison Access . | . . . . Total Hacks 5 | . 4 1 . Successful 4 | . 3 1 . Failed 1 | . 1 . . Catastrophic . | . . . . Database Lockouts . | . . . . Manual . | . . . . Terminals 4 | . 4 . . Fabricators . | . . . . Repair Stations . | . . . . Recycling Units . | . . . . Scanalyzers . | . . . . Garrison Access . | . . . . Terminal Hacks 4 | . 3 1 . Record 1 | . 1 . . Prototype ID Bank 1 | . 1 . . Open Door 1 | . . 1 . Branch Access Points 1 | . 1 . . Fabricator Hacks . | . . . . Repair Station Hacks . | . . . . Recycling Unit Hacks . | . . . . Scanalyzer . | . . . . Garrison Access Hacks . | . . . . Unauthorized Hacks . | . . . . Terminals . | . . . . Fabricators . | . . . . Repair Stations . | . . . . Recycling Units . | . . . . Scanalyzers . | . . . . Garrison Access . | . . . . Data Cores Recovered . | . . . . Used . | . . . . Hacking Detections . | . . . . Full Trace Events . | . . . . Feedback Events . | . . . . Feedback Blocked . | . . . . Robot Schematics Acquired . | . . . . Robots Built . | . . . . Authchips . | . . . . Time . | . . . . Total Robot Build Rating . | . . . . Part Schematics Acquired . | . . . . Parts Built . | . . . . Authchips . | . . . . Time . | . . . . Total Part Build Rating . | . . . . Parts Repaired . | . . . . Time . | . . . . Parts Recycled . | . . . . Recycled Matter . | . . . . Retrieved Matter . | . . . . Retrieved Components . | . . . . Parts Scanalyzed . | . . . . Part Schematics Acquired . | . . . . Parts Damaged . | . . . . Bothacking | -11 -10 -10 -10 ------------ Run | Yrd Mat Min Sub Used RIF Installer . | . . . . Robots Hacked . | . . . . Non-combat . | . . . . Combat . | . . . . Robot Hacks Applied . | . . . . Relay Couplers Released . | . . . . Fabnet Peak Effective % . | . . . . Robots Rewired . | . . . . Allies Hacked . | . . . . Hacks Repelled . | . . . . Allies | -11 -10 -10 -10 -------- Run | Yrd Mat Min Sub Total Allies 3 | . . 3 . Largest Group 3 | . . 3 3 Highest-Rated Group 40 | . . 40 40 Highest-Rated Ally 16 | . . 16 16 Total Orders . | . . . . Ally Attacks . | . . . . Total Damage . | . . . . Kills . | . . . . Allies Corrupted . | . . . . Allies Melted . | . . . . Intel | -11 -10 -10 -10 ------- Run | Yrd Mat Min Sub Robot Analysis Total . | . . . . Derelict Logs Recovered 1 | . . 1 . Drone Launches . | . . . . Drone Recoveries . | . . . . Exploration | -11 -10 -10 -10 ------------- Run | Yrd Mat Min Sub Turns Passed 2292 | 75 322 1341 554 Spaces Moved 798 | 51 35 469 243 Core 21 | 20 . . 1 Treads 714 | 31 35 469 179 Legs . | . . . . Wheels 63 | . . . 63 Hover . | . . . . Flight . | . . . . Fastest Speed 50 | 50 160 160 115 Average Speed 201 | 116 160 208 210 Slowest Speed 750 | 160 160 240 750 Overloaded Moves . | . . . . Propulsion Burnouts . | . . . . Robots Hopped . | . . . . Cave-ins Triggered . | . . . . Exploration Rate (%) 26 | 4 6 84 13 Regions Visited 3 Branch Regions 2 Pre-discovered Areas . | . . . . Known Exits Taken 1 | . 1 . . Unknown Exits Taken 2 | 1 . 1 . Scrap Searched 1 | . . 1 . Spaces Dug . | . . . . Terrain Destroyed 45 | . . . 45 Melee . | . . . . Projectile . | . . . . AOE 45 | . . . 45 Terrain Rammed . | . . . . Walls Destroyed . | . . . . Machines Disabled . | . . . . Actions | -11 -10 -10 -10 --------- Run | Yrd Mat Min Sub Total 1444 | 68 301 799 276 Wait 558 | . 267 271 20 Move 795 | 50 34 468 243 Hop . | . . . . Pick Up 37 | 9 . 26 2 Fast Attach . | . . . . Attach 14 | 6 . 4 4 Detach 1 | . . 1 . Swap 3 | . . 3 . Drop 9 | 3 . 6 . Fire 27 | . . 20 7 Melee . | . . . . Ram . | . . . . Kick . | . . . . Crush . | . . . . Escape Stasis . | . . . . Rewire . | . . . . Trap . | . . . . Miscellaneous . | . . . . Route ------- -11/Scrapyard -10/Materials (discovered 2 exits: *Min x2) -10/Mines (discovered 3 exits: [*Mat x2] / [*Sub]) -10/Subcaves (discovered 1 exit: [*Mat]) History --------- Turn | Location | Event 7 | -11/Scrapyard | Discovered new exit (range 16) 76 | -11/Scrapyard | Entered Materials 81 | -10/Materials | Identified exit to Mines 305 | -10/Materials | Build established: Mutant 398 | -10/Materials | Entered Mines 468 | -10/Mines | Received a Rocket Launcher from a helpful Derelict 540 | -10/Mines | Discovered new exit (range 4) 776 | -10/Mines | Found the Drone Emporium 797 | -10/Mines | Found Prototype Device 798 | -10/Mines | Identified Sensor Drone Bay 1157 | -10/Mines | Learned Materials non-interactive machine intel 1258 | -10/Mines | Found a damaged Exp. Sensor Array with a note attached 1267 | -10/Mines | Found Prototype Device 1268 | -10/Mines | Identified Exp. Sensor Array 1362 | -10/Mines | Discovered new exit (range 15) 1379 | -10/Mines | Assisted by bots powering up and referring to "LRC-V3" 1714 | -10/Mines | Discovered new exit (range 6) 1739 | -10/Mines | Entered Subcaves 1739 | -10/Subcaves | Accompanied by 3 allies 1994 | -10/Subcaves | Discovered new exit (range 10) 2192 | -10/Subcaves | Core integrity fell below 50% 2203 | -10/Subcaves | Lost 3 allies 2219 | -10/Subcaves | Lost 3 parts (1p2n) 2291 | -10/Subcaves | Core integrity fell below 20% 2293 | -10/Subcaves | Destroyed by IB-4WF(R) with Subdweller Beam Cannon Last Messages --------------- Subatomizers dissect the Particle Gun. N0-993(R) destroyed. Subatomizers dissect the Particle Gun, destroying it. Acquired Sub. Monowheel. Acquired Sub. Shrapnel Launcher. Acquired 30 matter. Subatomizers dissect the Aluminum Leg. The unstable cave ceiling collapses. Acquired 10 matter. Acquired 7 matter. Acquired 5 matter. Com. Wheel destroyed. Med. Laser destroyed. Acquired 11 matter. Acquired 3 matter. 7T-E96(R): "SUBHATE!" ZD-WVW(R) destroyed. Rocket Launcher destroyed. IB-4WF(R) emerges from concealment. Map ----- +----------------------------------------------------+ | ?????????????????????????????????????????????????? | | ?????????????????????????????????????????????????? | | ?????????????????????????????????????????????????? | | ?????????????????????????????????????????????????? | | ?????????????????????????????????????????????????? | | ?????????????????????????????????????????????????? | | ?????????????????????????????????????????????????? | | ?????????????????????????????????????????????????? | | ?????????????????????????????????????????????????? | | ?????????????????????????????????????????????????? | | ?????????????????????????????????????????????????? | | ?????????????????????????????????????????????????? | | ?????????????????????????????????????????????????? | | ????????????????????? ???????????????????????????? | | ????????????????????? ??????????????????????????? | | ????????????????????? ##??????###???????????????? | | ????????????????????? #?#### ##??????????????? | | ??????????????????## ? ?? #??????????????? | | ??????????????????# ? ?? #??????????????? | | ??????????????????# # ### #???????????????? | | ???????????????????# ? # #????????????????? | | ???????????????????# ? #?????????????????? | | ???????????????????# ### ; ##????????????????? | | ???????????????????# ;; #????????????????? | | ???????????????????# ;;; ; ##????????????????? | | ???????????????????# ;@ ;# #?????????####???? | | ???????????????????# ;;; ####????### ##??? | | ???????????????????# ##;; % ##??## #??? | | ??????????????????????## #?## #### | | ??????????????????????# ### # | | ??????????????????????# | | ??????????????????????# % | | ??????????????????????# | | ?????????????????????# | | ????????????????????# ## R % | | ????????????????????# ?? R | | ????????????????????## R??# & | | ?????????????????????## ??? & # ## | | ?????????????????????? ???## & ## | | ??????????????????????# ????? ?# | | ??????????????????????# ???????# ## | | ????????????????????????????????# ?#### | | ????????????????????????????????## #???# | | ????????????????????????????????? ????# # | | ?????????????????????????????????? ????# ## | | ????????????????????????????????????????## ## | | ????????????????????????????????????????? ?# | | ???????????????????????????????????????????#?## # | | ???????????????????????????????????????????????#?? | | ?????????????????????????????????????????????????? | +----------------------------------------------------+ Best States ------------- Heat Dissipation 35 Energy Generation 12 Energy Capacity 265 Matter Stores 300 Matter Capacity 300 Sight Range 16 Robot Scan Range 20 Terrain Scan Density 10 Evasion (%) 50 Recoil Reduction 2 Item Schematics ----------------- None Robot Schematics ------------------ None Fabricated ------------ Nothing Alien Tech Used ----------------- None Achievements -------------- None Challenges ------------ None Game ------ Seed PointySuspensionRail Manual? 0 Play Time 00:10:27 Cumulative 37.9 hours Start 2024.05.04 @ 22:51:19 End 2024.05.04 @ 23:00:21 Sessions 1 Manual Loads 0 Difficulty Rogue Special Mode None Game No. 63 Rogue 62 Adventurer 1 Explorer 0 Win Type - Total 0 Types 0/0/0/0/0/0/0/0/0 Lore% 37 Gallery% 38 Achievement% 31 Wizard Run 0 Options --------- Layout 1 ASCII 0 Keyboard 0 Movement Mouse Keybinds 0 Fullscreen 1 Font 24/Smallcaps Map View 50x40 Zoom Use 0% Tactical HUD 0 Map Filters NONE Filters NONE Steam 1 RUN: d144c83f-dc6d-49d7-be86-0caea38261d3